fUST/lending_fUST_20241231
["ID","MTS","AMOUNT","RATE_DAILY","PERIOD"]
[347244292,1735619444049,-500.0,0.0002,3]
[347244293,1735619444059,-2141.58,0.0002,3]
[347244294,1735619444068,-803.07,0.0002,2]
[347244295,1735619444077,-748.47,0.0002,3]
[347244296,1735619444086,-2063.31,0.0002,3]
[347244297,1735619444095,-7835.03,0.0002,3]
[347244298,1735619444105,-506.185,0.0002003,2]
[347244299,1735619444114,-161.92417454,0.00020166,2]
[347244300,1735619444124,-500.0,0.00020271,3]
[347244301,1735619444133,-853.48,0.00020272,3]
[347244302,1735619444143,-500.0,0.00020272,3]
[347244303,1735619444152,-500.0,0.00020272,3]
[347244304,1735619444161,-500.0,0.00020272,3]
[347244305,1735619444170,-500.0,0.00020272,3]
[347244306,1735619444180,-514.11,0.00020272,3]
[347244307,1735619444189,-840.96,0.00020272,3]
[347244308,1735619444198,-500.0,0.00020273,3]
[347244309,1735619444208,-500.0,0.00020273,3]
[347244310,1735619444217,-3807.7,0.00020273,3]
[347244311,1735619444227,-500.0,0.00020273,3]
[347244312,1735619444236,-500.0,0.00020273,3]
[347244313,1735619444245,-500.0,0.00020273,3]
[347244314,1735619444255,-691.85,0.00020273,3]
[347244315,1735619444264,-500.0,0.00020273,3]
[347244316,1735619444273,-500.0,0.00020273,3]
[347244317,1735619444283,-500.0,0.00020273,3]
[347244318,1735619444291,-500.0,0.00020273,3]
[347244319,1735619444300,-2141.58,0.00020273,3]
[347244320,1735619444309,-803.07,0.00020273,2]
[347244321,1735619444319,-748.47,0.00020273,3]
[347244322,1735619444328,-2063.31,0.00020273,3]
[347244323,1735619444342,-7835.03,0.00020273,3]
[347244324,1735619444351,-500.0,0.00020545,3]
[347244325,1735619444360,-853.48,0.00020546,3]
[347244326,1735619444369,-500.0,0.00020546,3]
[347244327,1735619444379,-500.0,0.00020546,3]
[347244328,1735619444387,-500.0,0.00020546,3]
[347244329,1735619444397,-500.0,0.00020546,3]
[347244330,1735619444406,-514.11,0.00020546,3]
[347244331,1735619444415,-840.96,0.00020546,3]
[347244332,1735619444425,-500.0,0.00020547,3]
[347244333,1735619444434,-500.0,0.00020547,3]
[347244334,1735619444443,-3807.7,0.00020547,3]
[347244335,1735619444454,-500.0,0.00020547,3]
[347244336,1735619444463,-500.0,0.00020547,3]
[347244337,1735619444473,-500.0,0.00020547,3]
[347244338,1735619444484,-691.85,0.00020547,3]
[347244339,1735619444493,-500.0,0.00020547,3]
[347244340,1735619444503,-500.0,0.00020547,3]
[347244341,1735619444512,-500.0,0.00020547,3]
[347244342,1735619444521,-500.0,0.00020547,3]
[347244343,1735619444530,-2141.58,0.00020547,3]
[347244344,1735619444540,-803.07,0.00020547,2]
[347244345,1735619444549,-748.47,0.00020547,3]
[347244346,1735619444559,-2063.31,0.00020547,3]
[347244347,1735619444568,-7835.03,0.00020547,3]
[347244348,1735619444577,-161.92417454,0.00020572,2]
[347244349,1735619444586,-150.0,0.000206,2]
[347244350,1735619444595,-151.0,0.000208,3]
[347244351,1735619444604,-151.0,0.000208,3]
[347244352,1735619444614,-500.0,0.00020819,3]
[347244353,1735619444623,-853.48,0.0002082,3]
[347244354,1735619444634,-500.0,0.0002082,3]
[347244355,1735619444646,-500.0,0.0002082,3]
[347244356,1735619444657,-477.2440529,0.0002082,3]
[347244357,1735619444669,-500.0,0.0002082,3]
[347244358,1735619444680,-514.11,0.0002082,3]
[347244359,1735619444691,-840.96,0.0002082,3]
[347244360,1735619444701,-500.0,0.00020821,3]
[347244361,1735619444710,-500.0,0.00020821,3]
[347244362,1735619444720,-3807.7,0.00020821,3]
[347244363,1735619444730,-500.0,0.00020821,3]
[347244364,1735619444747,-538.99501778,0.00020821,3]
[347244365,1735619444757,-500.0,0.00020821,3]
[347244366,1735619444766,-691.85,0.00020821,3]
[347244367,1735619444775,-500.0,0.00020821,3]
[347244368,1735619444785,-500.0,0.00020821,3]
[347244369,1735619444794,-500.0,0.00020821,3]
[347244370,1735619444803,-500.0,0.00020821,3]
[347244371,1735619444812,-2141.58,0.00020821,3]
[347244372,1735619444821,-803.07,0.00020821,2]
[347244373,1735619444831,-748.47,0.00020821,3]
[347244374,1735619444840,-2063.31,0.00020821,3]
[347244375,1735619444849,-7835.03,0.00020821,3]
[347244376,1735619444858,-151.0,0.000209,3]
[347244377,1735619444867,-151.0,0.000209,4]
[347244378,1735619444877,-150200.233446,0.000209,2]
[347244379,1735619444886,-2106.0,0.00020945,2]
[347244380,1735619444895,-1757.137,0.00020945,2]
[347244381,1735619444904,-394.0,0.00020945,2]
[347244382,1735619444913,-150.0,0.00020945,2]
[347244383,1735619444922,-161.92417454,0.00020979,2]
[347244384,1735619444931,-687.0795779,0.00021,2]
[347244385,1735619444940,-6284.5763188,0.00021,2]
[347244386,1735619444950,-3000.0,0.00021,2]
[347244387,1735619444959,-151.0,0.00021,4]
[347244388,1735619444968,-151.0,0.00021,3]
[347244389,1735619444977,-3000.0,0.0002101,2]
[347244390,1735619444986,-3000.0,0.0002102,2]
[347244391,1735619444995,-3000.0,0.0002103,2]
[347244392,1735619445005,-1822.821,0.00021035,2]
[347244393,1735619445014,-3000.0,0.0002104,2]
[347244394,1735619445024,-3000.0,0.0002105,2]
[347244395,1735619445033,-3000.0,0.0002106,2]
[347244396,1735619445043,-3000.0,0.0002107,2]
[347244397,1735619445052,-525.17827901,0.00021078,2]
[347244398,1735619445062,-183.58833013,0.00021078,2]
[347244399,1735619445071,-159.484729,0.00021079,2]
[347244400,1735619445080,-151.0,0.00021079,2]
[347244401,1735619445090,-151.0,0.00021079,2]
[347244402,1735619445099,-161.105508,0.00021079,2]
[347244403,1735619445108,-151.0,0.00021079,2]
[347244404,1735619445117,-151.0,0.00021079,2]
[347244405,1735619445126,-151.0,0.00021079,2]
[347244406,1735619445138,-151.0,0.00021079,2]
[347244407,1735619445147,-184.849318,0.00021079,2]
[347244408,1735619445157,-151.0,0.00021079,2]
[347244409,1735619445166,-151.0,0.00021079,2]
[347244410,1735619445174,-151.0,0.00021079,2]
[347244411,1735619445183,-279501.6598028,0.00021079,10]
[347244412,1735619445389,-1060.10065252,0.00021079,10]
[347244440,1735619446166,-230.01573475,0.00018986,2]
[347244441,1735619446176,-272.88426525,0.00019178,2]
[347244461,1735619507987,305.63,0.00021,20]
[347244465,1735620120690,12943.24299332,0.00020999,13]
[347244466,1735620434179,-158.273211,0.00013973,2]
[347244467,1735620434199,-530.7592403,0.00018472,2]
[347244468,1735620434218,-249.41597017,0.0001913,2]
[347244469,1735620434239,-194.158,0.00019177,2]
[347244470,1735620434260,-300.0,0.00019177,2]
[347244471,1735620434282,-500.0,0.00019178,2]
[347244472,1735620434304,-71.87205814,0.00019178,2]
[347244473,1735620595406,10000.0,0.00025,120]
[347244478,1735620616291,10000.0,0.00025,120]
[347244576,1735620638279,-163.261187,0.00018985,2]
[347244577,1735620638290,-272.0,0.00019177,2]
[347244578,1735620638301,-500.0,0.00019178,2]
[347244579,1735620638311,-500.0,0.00019178,2]
[347244580,1735620638322,-500.0,0.00019178,2]
[347244581,1735620638332,-500.0,0.00019178,2]
[347244582,1735620638342,-500.0,0.00019178,2]
[347244583,1735620638352,-507.59108074,0.00019178,2]
[347244584,1735620638362,-500.0,0.00019178,2]
[347244585,1735620638372,-500.0,0.00019178,2]
[347244586,1735620638382,-500.0,0.00019178,2]
[347244587,1735620638393,-500.0,0.00019178,2]
[347244588,1735620638403,-500.0,0.00019178,2]
[347244589,1735620638413,-857.0,0.00019178,2]
[347244590,1735620638424,-428.12794186,0.00019178,2]
[347244591,1735620638435,-715.81,0.00019178,2]
[347244594,1735620638445,-568.84,0.00019178,2]
[347244596,1735620638455,-500.0,0.00019178,2]
[347244597,1735620638465,-500.0,0.00019178,2]
[347244599,1735620638475,-1569.54,0.00019178,2]
[347244602,1735620638486,-500.0,0.00019178,2]
[347244605,1735620638496,-500.0,0.00019178,2]
[347244611,1735620638626,-385.08669821,0.00019178,2]
[347244612,1735620638636,-500.0,0.00019178,2]
[347244613,1735620638646,-500.0,0.00019178,2]
[347244614,1735620638655,-502.16414651,0.00019178,2]
[347244615,1735620638664,-500.0,0.00019178,2]
[347244616,1735620638673,-500.0,0.00019178,2]
[347244617,1735620638683,-2955.73,0.00019178,2]
[347244618,1735620638693,-500.0,0.00019178,2]
[347244619,1735620638702,-500.0,0.00019178,2]
[347244620,1735620638712,-500.0,0.00019178,2]
[347244621,1735620638721,-500.0,0.00019178,2]
[347244623,1735620638730,-164.9847203,0.00019178,2]
[347244624,1735620638739,-500.0,0.00019447,3]
[347244625,1735620638748,-500.0,0.00019447,3]
[347244626,1735620638758,-500.0,0.00019447,3]
[347244627,1735620638767,-500.0,0.00019447,3]
[347244628,1735620638776,-500.0,0.00019447,3]
[347244630,1735620638785,-500.0,0.00019448,3]
[347244631,1735620638795,-407.59,0.00019448,3]
[347244633,1735620638804,-500.0,0.00019448,3]
[347244635,1735620638813,-500.0,0.00019448,3]
[347244637,1735620638822,-484.53357171,0.00019448,3]
[347244639,1735620638831,-500.0,0.00019448,3]
[347244641,1735620638841,-417.01328409,0.00019448,3]
[347244643,1735620638850,-500.0,0.00019448,3]
[347244645,1735620638860,-1516.95,0.00019448,3]
[347244647,1735620638869,-500.0,0.00019448,3]
[347244649,1735620638878,-341.48989017,0.00019448,3]
[347244651,1735620638887,-500.0,0.00019448,3]
[347244653,1735620638896,-500.0,0.00019448,3]
[347244655,1735620638905,-500.0,0.00019448,3]
[347244657,1735620638914,-619.72,0.00019448,3]
[347244659,1735620638923,-530.16,0.00019448,3]
[347244661,1735620638932,-6021.66,0.00019448,3]
[347244663,1735620638942,-500.0,0.00019451,3]
[347244665,1735620638951,-503.61409949,0.00019451,3]
[347244667,1735620638961,-501.91433686,0.00019451,3]
[347244669,1735620638970,-500.0,0.00019451,3]
[347244671,1735620638979,-500.0,0.00019451,3]
[347244673,1735620638988,-500.0,0.00019452,3]
[347244675,1735620638998,-500.0,0.00019452,3]
[347244677,1735620639007,-410.93814902,0.00019452,2]
[347244679,1735620639017,-500.0,0.00019452,3]
[347244681,1735620639026,-857.0,0.00019452,3]
[347244683,1735620639035,-715.81,0.00019452,3]
[347244684,1735620639045,-568.84,0.00019452,2]
[347244685,1735620639054,-1569.54,0.00019452,3]
[347244686,1735620639063,-500.0,0.00019452,3]
[347244687,1735620639073,-500.0,0.00019452,3]
[347244688,1735620639083,-500.0,0.00019452,3]
[347244689,1735620639092,-2955.73,0.00019452,3]
[347244690,1735620639101,-500.0,0.00019452,3]
[347244691,1735620639111,-500.0,0.00019452,3]
[347244692,1735620639119,-500.0,0.00019452,3]
[347244693,1735620639128,-500.0,0.00019721,3]
[347244694,1735620639138,-500.0,0.00019721,3]
[347244695,1735620639147,-500.0,0.00019721,3]
[347244696,1735620639156,-183.98254046,0.00019722,3]
[347244697,1735620639166,-500.0,0.00019722,3]
[347244698,1735620639175,-1516.95,0.00019722,3]
[347244699,1735620639186,-500.0,0.00019722,3]
[347244700,1735620639196,-530.16,0.00019722,3]
[347244701,1735620639205,-6021.66,0.00019722,3]
[347244702,1735620639215,-500.0,0.00019725,3]
[347244703,1735620639224,-500.0,0.00019726,3]
[347244704,1735620639237,-500.0,0.00019726,3]
[347244705,1735620639246,-500.0,0.00019726,3]
[347244706,1735620639256,-857.0,0.00019726,3]
[347244707,1735620639265,-715.81,0.00019726,3]
[347244708,1735620639275,-568.84,0.00019726,2]
[347244709,1735620639285,-1569.54,0.00019726,3]
[347244710,1735620639294,-500.0,0.00019726,3]
[347244711,1735620639304,-500.0,0.00019726,3]
[347244712,1735620639313,-500.0,0.00019726,3]
[347244713,1735620639323,-2955.73,0.00019726,3]
[347244714,1735620639332,-500.0,0.00019726,3]
[347244715,1735620639343,-500.0,0.00019726,3]
[347244716,1735620639353,-500.0,0.00019995,3]
[347244717,1735620639362,-500.0,0.00019995,3]
[347244718,1735620639371,-237.51859785,0.00019996,3]
[347244719,1735620639380,-1516.95,0.00019996,3]
[347244720,1735620639390,-500.0,0.00019996,3]
[347244721,1735620639402,-530.16,0.00019996,3]
[347244722,1735620639411,-533.05975573,0.00019996,3]
[347244723,1735620639424,-1040.19,0.00019996,3]
[347244726,1735620640327,-4448.41024427,0.00019996,3]
[347244727,1735620640337,-577.80590779,0.00019999,3]
[347244728,1735620640347,-500.0,0.0002,3]
[347244729,1735620640356,-155.54566208,0.0002,3]
[347244730,1735620640366,-500.0,0.0002,3]
[347244732,1735620640376,-857.0,0.0002,3]
[347244734,1735620640385,-715.81,0.0002,3]
[347244735,1735620640395,-568.84,0.0002,2]
[347244737,1735620640405,-1569.54,0.0002,3]
[347244738,1735620640414,-500.0,0.0002,3]
[347244739,1735620640423,-500.0,0.0002,3]
[347244740,1735620640433,-500.0,0.0002,3]
[347244741,1735620640443,-500.0,0.0002,3]
[347244743,1735620640452,-2955.73,0.0002,3]
[347244744,1735620640462,-500.0,0.0002,3]
[347244746,1735620640472,-533.524,0.0002003,2]
[347244747,1735620640482,-8724.87421758,0.00020032,2]
[347244748,1735620640491,-360.9397654,0.0002011,2]
[347244749,1735620640501,-154.6077978,0.00020247,2]
[347244750,1735620640510,-153.0,0.00020247,2]
[347244751,1735620640519,-153.0,0.00020247,2]
[347244752,1735620640529,-153.0,0.00020247,2]
[347244754,1735620640539,-153.0,0.00020247,2]
[347244756,1735620640548,-153.0,0.00020247,2]
[347244757,1735620640558,-500.0,0.00020269,3]
[347244758,1735620640567,-500.0,0.00020269,3]
[347244760,1735620640577,-1516.95,0.0002027,3]
[347244762,1735620640587,-160.22970184,0.0002027,3]
[347244763,1735620640596,-530.16,0.0002027,3]
[347244764,1735620640606,-6021.66,0.0002027,3]
[347244765,1735620640615,-500.0,0.00020273,3]
[347244766,1735620640625,-500.0,0.00020273,3]
[347244767,1735620640634,-857.0,0.00020273,3]
[347244768,1735620640644,-715.81,0.00020273,3]
[347244769,1735620640654,-568.84,0.00020273,2]
[347244770,1735620640664,-499.0,0.00020273,2]
[347244771,1735620640674,-1569.54,0.00020273,3]
[347244772,1735620640683,-500.0,0.00020273,3]
[347244773,1735620640694,-500.0,0.00020273,3]
[347244774,1735620640705,-500.0,0.00020273,3]
[347244775,1735620640714,-500.0,0.00020273,3]
[347244776,1735620640724,-2955.73,0.00020273,3]
[347244777,1735620640734,-500.0,0.00020273,3]
[347244778,1735620640743,-8724.87421758,0.00020354,2]
[347244779,1735620640752,-179.921402,0.00020521,2]
[347244780,1735620640762,-500.0,0.00020543,3]
[347244781,1735620640771,-500.0,0.00020543,3]
[347244782,1735620640781,-1516.95,0.00020544,3]
[347244783,1735620640791,-530.16,0.00020544,3]
[347244784,1735620640800,-6021.66,0.00020544,3]
[347244785,1735620640810,-500.0,0.00020545,3]
[347244786,1735620640819,-597.64,0.00020545,3]
[347244787,1735620640828,-298.24662501,0.00020547,3]
[347244788,1735620640837,-500.0,0.00020547,3]
[347244789,1735620640847,-857.0,0.00020547,3]
[347244790,1735620640856,-715.81,0.00020547,3]
[347244791,1735620640866,-568.84,0.00020547,2]
[347244792,1735620640875,-1569.54,0.00020547,3]
[347244793,1735620640884,-500.0,0.00020547,3]
[347244794,1735620640894,-500.0,0.00020547,3]
[347244795,1735620640903,-500.0,0.00020547,3]
[347244796,1735620640912,-500.0,0.00020547,3]
[347244797,1735620640921,-2955.73,0.00020547,3]
[347244798,1735620640930,-500.0,0.00020547,3]
[347244799,1735620640941,-500.0,0.00020611,2]
[347244800,1735620640950,-500.0,0.00020611,2]
[347244801,1735620640960,-500.0,0.00020611,2]
[347244802,1735620640969,-500.0,0.00020611,2]
[347244803,1735620640978,-500.0,0.00020611,2]
[347244804,1735620640987,-500.0,0.00020611,2]
[347244805,1735620640996,-500.0,0.00020611,2]
[347244806,1735620641005,-500.0,0.00020611,2]
[347244807,1735620641014,-500.0,0.00020611,2]
[347244808,1735620641023,-500.0,0.00020611,2]
[347244809,1735620641032,-500.0,0.00020611,2]
[347244810,1735620641041,-500.0,0.00020611,2]
[347244811,1735620641051,-500.0,0.00020611,2]
[347244812,1735620641060,-500.0,0.00020611,2]
[347244813,1735620641069,-500.0,0.00020611,2]
[347244814,1735620641078,-500.0,0.00020611,2]
[347244815,1735620641087,-500.0,0.00020611,2]
[347244816,1735620641096,-500.0,0.00020611,2]
[347244817,1735620641106,-500.0,0.00020611,2]
[347244818,1735620641115,-500.0,0.00020611,2]
[347244819,1735620641124,-500.0,0.00020611,2]
[347244820,1735620641133,-500.0,0.00020611,2]
[347244821,1735620641142,-500.0,0.00020611,2]
[347244822,1735620641151,-500.0,0.00020611,2]
[347244823,1735620641160,-500.0,0.00020611,2]
[347244824,1735620641169,-500.0,0.00020611,2]
[347244825,1735620641179,-500.0,0.00020611,2]
[347244826,1735620641189,-500.0,0.00020611,2]
[347244827,1735620641199,-500.0,0.00020611,2]
[347244828,1735620641208,-500.0,0.00020611,2]
[347244829,1735620641218,-500.0,0.00020611,2]
[347244830,1735620641227,-500.0,0.00020611,2]
[347244831,1735620641240,-500.0,0.00020611,2]
[347244832,1735620641249,-500.0,0.00020611,2]
[347244833,1735620641259,-500.0,0.00020611,2]
[347244834,1735620641268,-308.92040751,0.00020611,2]
[347244835,1735620641279,-500.0,0.00020611,2]
[347244836,1735620641288,-500.0,0.00020611,2]
[347244837,1735620641297,-500.0,0.00020611,2]
[347244838,1735620641307,-500.0,0.00020611,2]
[347244839,1735620641316,-500.0,0.00020611,2]
[347244840,1735620641326,-499.18437982,0.00020611,2]
[347244841,1735620641335,-500.0,0.00020611,2]
[347244842,1735620641344,-500.0,0.00020611,2]
[347244843,1735620641354,-500.0,0.00020611,2]
[347244844,1735620641364,-500.0,0.00020611,2]
[347244845,1735620641373,-500.0,0.00020611,2]
[347244846,1735620641382,-500.0,0.00020611,2]
[347244847,1735620641391,-500.0,0.00020611,2]
[347244848,1735620641400,-500.0,0.00020611,2]
[347244849,1735620641410,-500.0,0.00020611,2]
[347244850,1735620641419,-500.0,0.00020611,2]
[347244851,1735620641429,-8724.87421758,0.00020717,2]
[347244852,1735620641440,-500.0,0.00020817,3]
[347244853,1735620641449,-500.0,0.00020817,3]
[347244854,1735620641459,-1000.0,0.00020818,2]
[347244855,1735620641468,-1516.95,0.00020818,3]
[347244856,1735620641477,-530.16,0.00020818,3]
[347244857,1735620641487,-6021.66,0.00020818,3]
[347244858,1735620641496,-500.0,0.00020821,3]
[347244859,1735620641506,-857.0,0.00020821,3]
[347244860,1735620641516,-715.81,0.00020821,3]
[347244861,1735620641525,-568.84,0.00020821,2]
[347244862,1735620641535,-1569.54,0.00020821,3]
[347244863,1735620641544,-500.0,0.00020821,3]
[347244864,1735620641554,-500.0,0.00020821,3]
[347244865,1735620641564,-500.0,0.00020821,3]
[347244866,1735620641573,-500.0,0.00020821,3]
[347244867,1735620641582,-2955.73,0.00020821,3]
[347244868,1735620641592,-500.0,0.00020821,3]
[347244869,1735620641601,-1073.5524832,0.00020824,2]
[347244870,1735620641610,-31.11420733,0.0002083,2]
[347244882,1735620643317,-926.2,0.0002083,2]
[347244883,1735620643328,-42.68579267,0.0002083,2]
[347244884,1735620643337,-792.13093675,0.00020831,2]
[347244899,1735620646385,-207.86906325,0.00020831,2]
[347244900,1735620646395,-1000.0,0.00020865,2]
[347244901,1735620646404,-1000.0,0.00020865,2]
[347244902,1735620646413,-171.3182412,0.00020869,2]
[347244903,1735620646422,-1000.0,0.00020876,2]
[347244904,1735620646432,-1000.0,0.00020897,2]
[347244905,1735620646442,-150.0,0.000209,2]
[347244906,1735620646451,-1000.0,0.000209,2]
[347244907,1735620646460,-179.921402,0.00020904,2]
[347244908,1735620646470,-1000.0,0.00020939,2]
[347244909,1735620646479,-1057.627,0.00020951,2]
[347244910,1735620646488,-350.388,0.00020951,2]
[347244911,1735620646497,-334.748,0.00020951,2]
[347244912,1735620646506,-1000.0,0.00020955,2]
[347244913,1735620646515,-597.64,0.00020978,3]
[347244914,1735620646523,-2340.11423475,0.00020979,2]
[347244915,1735620646532,-1000.0,0.00020983,2]
[347244916,1735620646541,-1000.0,0.00020987,2]
[347244917,1735620646550,-4324.26542311,0.00020999,7]
[347244918,1735620646559,-597.64,0.00020999,3]
[347244919,1735620646569,-23814.55371692,0.00021,2]
[347244920,1735620646578,-181.3717,0.00021,2]
[347244921,1735620646587,-1000.0,0.00021062,2]
[347244922,1735620646597,-597.64,0.00021078,3]
[347244923,1735620646606,-151.0,0.00021079,2]
[347244924,1735620646615,-597.64,0.00021079,3]
[347244925,1735620646624,-597.64,0.00021079,3]
[347244926,1735620646634,-597.64,0.00021079,3]
[347244927,1735620646643,-597.64,0.00021079,3]
[347244928,1735620646653,-597.64,0.00021079,3]
[347244929,1735620646662,-597.64,0.00021079,3]
[347244930,1735620646672,-597.64,0.00021079,3]
[347244931,1735620646681,-597.64,0.00021079,3]
[347244932,1735620646690,-597.64,0.00021079,3]
[347244933,1735620646699,-597.64,0.00021079,3]
[347244934,1735620646708,-597.64,0.00021079,3]
[347244935,1735620646717,-597.64,0.00021079,3]
[347244936,1735620646726,-597.64,0.00021079,3]
[347244937,1735620646735,-597.64,0.00021079,3]
[347244938,1735620646744,-597.64,0.00021079,3]
[347244939,1735620646753,-597.64,0.00021079,3]
[347244940,1735620646762,-597.64,0.00021079,3]
[347244941,1735620646771,-597.64,0.00021079,3]
[347244942,1735620646780,-597.64,0.00021079,3]
[347244943,1735620646789,-597.8,0.00021079,3]
[347244944,1735620646798,-3000.0,0.0002108,2]
[347244945,1735620646808,-151.0,0.0002108,2]
[347244946,1735620646826,-150.24,0.00021081,2]
[347244947,1735620646835,-150.24,0.00021081,2]
[347244948,1735620646844,-199.6,0.00021081,2]
[347244949,1735620646853,-150.24,0.00021081,2]
[347244950,1735620646863,-150.25936146,0.00021081,2]
[347244951,1735620646872,-367.6247953,0.00021088,2]
[347244952,1735620646881,-10356.35729114,0.00021088,2]
[347244953,1735620646890,-69806.79767793,0.00021088,2]
[347244954,1735620646899,-3820.0,0.00021089,60]
[347244955,1735620646908,-34872.72549311,0.00021089,10]
[347244956,1735620646920,-13155.99537426,0.00021089,10]
[347244957,1735620647000,-1382.39187609,0.00021089,10]
[347244960,1735621757258,-162.695289,0.00013973,2]
[347244961,1735621757283,-623.264711,0.00018418,2]
[347244962,1735621769179,-209.88496,0.00018418,2]
[347244963,1735621769204,-151.6482535,0.00019078,2]
[347244964,1735621769229,-1201.82413897,0.000191,3]
[347244965,1735621769262,-1342.22580914,0.000191,3]
[347244991,1735621832614,-2128.9001366,0.000191,3]
[347244992,1735621832678,-9067.67936753,0.000191,3]
[347245017,1735621838466,-339.99999999,0.000191,3]
[347245018,1735621838481,-3373.66170677,0.000191,3]
[347245019,1735621838492,-500.90628145,0.00019173,2]
[347245020,1735621838504,-420.11587146,0.00019173,2]
[347245021,1735621838514,-202.43551993,0.00019173,2]
[347245022,1735621838525,-151.0697403,0.00019173,2]
[347245023,1735621838535,-504.54542792,0.00019173,2]
[347245024,1735621838545,-503.60882702,0.00019178,2]
[347245025,1735621838556,-503.08888379,0.00019178,2]
[347245026,1735621838566,-501.14427851,0.00019178,2]
[347245027,1735621838576,-504.89092321,0.00019178,2]
[347245028,1735621838586,-503.46324555,0.00019178,2]
[347245029,1735621838597,-500.0,0.00019178,2]
[347245030,1735621838609,-501.79148804,0.00019178,2]
[347245031,1735621838619,-500.0,0.00019178,2]
[347245032,1735621838632,-500.0,0.00019178,2]
[347245033,1735621838642,-500.0,0.00019178,2]
[347245034,1735621838651,-505.03584665,0.00019178,2]
[347245035,1735621838661,-501.3172296,0.00019178,2]
[347245036,1735621838670,-505.43905876,0.00019178,2]
[347245037,1735621838681,-504.22944336,0.00019178,2]
[347245038,1735621838692,-505.28476166,0.00019178,2]
[347245039,1735621838701,-510.7236771,0.00019178,2]
[347245040,1735621838712,-500.88831912,0.00019178,2]
[347245041,1735621838722,-500.69958194,0.00019178,2]
[347245042,1735621838734,-500.0,0.00019178,2]
[347245043,1735621838744,-500.0,0.00019178,2]
[347245044,1735621838756,-502.98484956,0.00019178,2]
[347245045,1735621838766,-375.52818558,0.00019178,2]
[347245046,1735621838777,-500.89796401,0.00019178,2]
[347245047,1735621838788,-500.0,0.00019178,2]
[347245048,1735621838799,-502.33841668,0.00019178,2]
[347245049,1735621838810,-500.0,0.00019178,2]
[347245050,1735621838821,-503.36514713,0.00019178,2]
[347245051,1735621838831,-500.0,0.00019178,2]
[347245052,1735621838843,-502.04724083,0.00019178,2]
[347245053,1735621838853,-230.70045641,0.00019178,2]
[347245054,1735621838863,-501.65580712,0.00019178,2]
[347245055,1735621838872,-500.0,0.00019178,2]
[347245056,1735621838883,-500.0,0.00019178,2]
[347245057,1735621838893,-500.0,0.00019178,2]
[347245058,1735621838902,-500.0,0.00019178,2]
[347245059,1735621838912,-500.0,0.00019178,2]
[347245060,1735621838922,-500.0,0.00019178,2]
[347245061,1735621838933,-224.29944625,0.00019178,2]
[347245062,1735621838945,-500.0,0.00019178,2]
[347245063,1735621838959,-500.0,0.00019178,2]
[347245064,1735621838970,-500.0,0.00019178,2]
[347245065,1735621838982,-500.0,0.00019178,2]
[347245066,1735621838993,-535.26800645,0.00019178,2]
[347245067,1735621839003,-500.0,0.00019178,2]
[347245068,1735621839013,-500.0,0.00019178,2]
[347245069,1735621839025,-500.0,0.00019178,2]